[Event "SWE-ch 65 2019"]
[Site "Eskilstuna"]
[Date "2019.07.10"]
[Round "5.4"]
[White "Lundquist, Leif"]
[Black "Enqvist, Gosta"]
[Result "0-1"]
[ECO "B90"]
[WhiteElo "1885"]
[BlackElo "2050"]
[Annotator "NA"]
[PlyCount "84"]
[EventDate "2019.07.06"]
[EventType "tourn"]
[EventCountry "SWE"]
[SourceTitle "playchess.com"]
[Source "ChessBase"]
[SourceQuality "1"]
[TimeControl "40/5400+30:1800+30"]

1. e4 {[%emt 0:00:00]} c5 {[%emt 0:00:00]} 2. Nf3 {[%emt 0:00:00]} d6 {[%emt 0:00:00]} 3. d4 {[%emt 0:00:00]} cxd4 {[%emt 0:00:00]} 4. Nxd4 {[%emt 0:00:00]} Nf6 {[%emt 0:00:00]} 5. Nc3 {[%emt 0:00:02]} a6 {[%emt 0:00:18]} 6. Be3 {[%emt 0:00:08]} Ng4 {[%emt 0:00:23]} 7. Bg5 {[%emt 0:00:14]} h6 {[%emt 0:00:09]} 8. Bh4 {[%emt 0:00:06]} g5 {[%emt 0:00:08]} 9. Bg3 {[%emt 0:00:06]} Bg7 {[%emt 0:00:13]} 10. h3 {[%emt 0:00:15]} Ne5 {[%emt 0:00:08]} 11. f3 {[%emt 0:00:22]} Nbc6 {[%emt 0:03:22]} 12. Bf2 {[%emt 0:00:26]} b5 {[%emt 0:02:19]} 13. Nd5 {[%emt 0:20:08]} Rb8 {[%emt 0:02:48]} 14. c3 {[%emt 0:08:28]} e6 {[%emt 0:02:56]} 15. Ne3 {[%emt 0:08:04]} Nxd4 {[%emt 0:17:55]} 16. cxd4 {[%emt 0:00:11]} Qa5+ {[%emt 0:00:07]} 17. Qd2 {[%emt 0:01:21]} Qxd2+ {[%emt 0:00:08]} 18. Kxd2 {[%emt 0:00:08]} Nc6 {[%emt 0:06:15]} 19. d5 {[%emt 0:05:45]} Ne7 {[%emt 0:00:41]} 20. Bg3 {[%emt 0:22:49]} Kd7 {[%emt 0:08:06]} 21. dxe6+ {[%emt 0:04:25]} fxe6 {[%emt 0:00:27]} 22. Rd1 {[%emt 0:07:12]} Ng6 {[%emt 0:06:35]} 23. Kc1 {[%emt 0:06:17]} Nf4 {[%emt 0:02:51]} 24. h4 {[%emt 0:05:08]} Bb7 {[%emt 0:00:41]} 25. Bd3 {[%emt 0:03:00]} Rbc8+ {[%emt 0:02:27]} 26. Kb1 {[%emt 0:00:16]} Ke7 {[%emt 0:01:35]} 27. Rd2 {[%emt 0:01:46]} Be5 {[%emt 0:08:22]} 28. Bc2 {[%emt 0:02:08]} Ng6 {[%emt 0:01:16]} 29. Bxe5 {[%emt 0:00:47]} Nxe5 {[%emt 0:00:07]} 30. Rhd1 {[%emt 0:01:06]} Rcd8 {[%emt 0:00:41]} 31. hxg5 {[%emt 0:01:27]} hxg5 {[%emt 0:00:11]} 32. Bb3 {[%emt 0:00:07]} g4 {[%emt 0:03:03]} 33. Rf1 {[%emt 0:01:44]} gxf3 {[%emt 0:01:25]} 34. gxf3 {[%emt 0:00:11]} Rdf8 {[%emt 0:00:50]} 35. Rfd1 {[%emt 0:01:06]} Rd8 {[%emt 0:04:02]} 36. Rf1 {[%emt 0:00:40]} Rhf8 {[%emt 0:00:23]} 37. Rdf2 {[%emt 0:00:45]} Rxf3 {[%emt 0:00:48]} 38. Bc2 {[%emt 0:00:52]} Rxe3 {[%emt 0:03:24]} 39. Rh2 {[%emt 0:00:20]} Rf8 {[%emt 0:00:15]} 40. Rxf8 {[%emt 0:01:02]} Kxf8 {[%emt 0:00:11]} 41. Rh8+ {[%emt 0:30:39]} Ke7 {[%emt 0:30:26]} 42. Rh7+ {[%emt 0:00:25]} Nf7 {[%emt 0:00:13]} 0-1

[Event "SWE-ch 65 2019"]
[Site "Eskilstuna"]
[Date "2019.07.11"]
[Round "6.1"]
[White "Enqvist, Gosta"]
[Black "Bellon Lopez, Juan Manuel"]
[Result "0-1"]
[ECO "A35"]
[WhiteElo "2050"]
[BlackElo "2343"]
[Annotator "NA"]
[PlyCount "102"]
[EventDate "2019.07.06"]
[EventType "tourn"]
[EventCountry "SWE"]
[SourceTitle "playchess.com"]
[Source "ChessBase"]
[SourceQuality "1"]
[TimeControl "40/5400+30:1800+30"]

1. Nf3 {[%emt 0:00:00]} c5 {[%emt 0:00:00]} 2. c4 {[%emt 0:00:00]} g6 {[%emt 0:00:00]} 3. Nc3 {[%emt 0:00:00]} Bg7 {[%emt 0:00:00]} 4. d4 {[%emt 0:00:27]} cxd4 {[%emt 0:00:17]} 5. Nxd4 {[%emt 0:00:09]} Nc6 {[%emt 0:00:03]} 6. e3 {[%emt 0:00:54]} d6 {[%emt 0:01:58]} 7. b3 {[%emt 0:03:06]} Nh6 {[%emt 0:04:14]} 8. Bb2 {[%emt 0:01:26]} Qa5 {[%emt 0:08:12]} 9. Qd2 {[%emt 0:04:32]} O-O {[%emt 0:02:32]} 10. Nf3 {[%emt 0:14:24]} a6 {[%emt 0:03:28]} 11. a3 {[%emt 0:02:45]} Be6 {[%emt 0:03:11]} 12. Be2 {[%emt 0:04:29]} Rac8 {[%emt 0:00:27]} 13. Rc1 {[%emt 0:02:20]} Ng4 {[%emt 0:02:54]} 14. O-O {[%emt 0:02:39]} Qb6 {[%emt 0:01:09]} 15. b4 {[%emt 0:02:15]} a5 {[%emt 0:09:43]} 16. Na4 {[%emt 0:07:09]} Qa7 {[%emt 0:01:05]} 17. Bxg7 {[%emt 0:00:24]} Kxg7 {[%emt 0:00:11]} 18. b5 {[%emt 0:03:06]} Nce5 {[%emt 0:00:05]} 19. b6 {[%emt 0:09:09]} Qa8 {[%emt 0:05:20]} 20. Nxe5 {[%emt 0:12:02]} Nxe5 {[%emt 0:01:57]} 21. f4 {[%emt 0:01:44]} Nd7 {[%emt 0:02:38]} 22. Qd4+ {[%emt 0:01:02]} f6 {[%emt 0:01:31]} 23. Nc3 {[%emt 0:01:48]} Nc5 {[%emt 0:09:47]} 24. Rb1 {[%emt 0:01:04]} Qa6 {[%emt 0:06:49]} 25. e4 {[%emt 0:06:53]} Nd7 {[%emt 0:03:37]} 26. c5 {[%emt 0:06:28]} dxc5 {[%emt 0:05:35]} 27. Qxd7 {[%emt 0:00:14]} Bxd7 {[%emt 0:00:10]} 28. Bxa6 {[%emt 0:00:06]} bxa6 {[%emt 0:00:08]} 29. b7 {[%emt 0:00:09]} Rb8 {[%emt 0:00:20]} 30. Rb6 {[%emt 0:00:19]} Bb5 {[%emt 0:01:15]} 31. Rd1 {[%emt 0:03:30]} e6 {[%emt 0:02:37]} 32. a4 {[%emt 0:01:54]} Bc4 {[%emt 0:05:49]} 33. Rd7+ {[%emt 0:05:48]} Rf7 {[%emt 0:00:04]} 34. Rxf7+ {[%emt 0:00:23]} Kxf7 {[%emt 0:00:03]} 35. Rc6 {[%emt 0:00:11]} Rxb7 {[%emt 0:00:13]} 36. Rxc5 {[%emt 0:00:06]} Bd3 {[%emt 0:00:28]} 37. e5 {[%emt 0:00:17]} g5 {[%emt 0:03:41]} 38. fxg5 {[%emt 0:00:55]} fxg5 {[%emt 0:00:13]} 39. h3 {[%emt 0:01:40]} h5 {[%emt 0:02:51]} 40. Rc8 {[%emt 0:00:35]} Rb2 {[%emt 0:01:43]} 41. Rd8 {[%emt 0:30:34]} Bf5 {[%emt 0:32:59]} 42. Rd6 {[%emt 0:02:46]} Rc2 {[%emt 0:03:13]} 43. Nd1 {[%emt 0:00:00]} Re2 {[%emt 0:00:00]} 44. Nc3 {[%emt 0:00:00]} Rxe5 {[%emt 0:00:00]} 45. Rxa6 {[%emt 0:00:00]} Bc2 {[%emt 0:00:00]} 46. Rc6 {[%emt 0:00:00]} Ke7 {[%emt 0:00:00]} 47. Kf2 {[%emt 0:00:00]} Kd7 {[%emt 0:00:00]} 48. Rc4 {[%emt 0:00:00]} Bb3 {[%emt 0:00:00]} 49. Rd4+ {[%emt 0:00:00]} Kc6 {[%emt 0:00:00]} 50. Ne2 {[%emt 0:00:00]} Kc5 {[%emt 0:00:00]} 51. h4 {[%emt 0:00:00]} Rxe2+ {[%emt 0:00:00]} 0-1

[Event "SWE-ch 65 2019"]
[Site "Eskilstuna"]
[Date "2019.07.11"]
[Round "6.2"]
[White "Alquist, Erik"]
[Black "Westin, Ake"]
[Result "0-1"]
[ECO "C10"]
[WhiteElo "1976"]
[BlackElo "1975"]
[Annotator "NA"]
[PlyCount "114"]
[EventDate "2019.07.06"]
[EventType "tourn"]
[EventCountry "SWE"]
[SourceTitle "playchess.com"]
[Source "ChessBase"]
[SourceQuality "1"]
[TimeControl "40/5400+30:1800+30"]

1. e4 {[%emt 0:32:33]} e6 {[%emt 0:00:45]} 2. d4 {[%emt 0:00:06]} d5 {[%emt 0:00:18]} 3. Nc3 {[%emt 0:00:05]} Nc6 {[%emt 0:00:11]} 4. e5 {[%emt 0:00:34]} f6 {[%emt 0:00:43]} 5. Bb5 {[%emt 0:00:20]} Bd7 {[%emt 0:00:41]} 6. Nf3 {[%emt 0:00:48]} Qe7 {[%emt 0:01:22]} 7. O-O {[%emt 0:01:14]} Qf7 {[%emt 0:02:13]} 8. Re1 {[%emt 0:00:56]} O-O-O {[%emt 0:01:37]} 9. a4 {[%emt 0:03:04]} Nge7 {[%emt 0:04:56]} 10. b3 {[%emt 0:02:53]} Ng6 {[%emt 0:04:37]} 11. Ba3 {[%emt 0:08:01]} Nf4 {[%emt 0:18:01]} 12. Bxc6 {[%emt 0:02:26]} Bxc6 {[%emt 0:00:25]} 13. b4 {[%emt 0:00:27]} Bd7 {[%emt 0:04:10]} 14. b5 {[%emt 0:03:24]} Qg6 {[%emt 0:02:10]} 15. Nh4 {[%emt 0:02:09]} Nh3+ {[%emt 0:03:10]} 16. Kf1 {[%emt 0:00:19]} Qh6 {[%emt 0:02:34]} 17. Qg4 {[%emt 0:03:39]} Bxa3 {[%emt 0:01:28]} 18. Rxa3 {[%emt 0:00:13]} Ng5 {[%emt 0:01:35]} 19. f4 {[%emt 0:06:28]} Nf7 {[%emt 0:01:10]} 20. Nf3 {[%emt 0:00:37]} f5 {[%emt 0:06:36]} 21. Qh4 {[%emt 0:03:57]} Qxh4 {[%emt 0:01:24]} 22. Nxh4 {[%emt 0:00:01]} g5 {[%emt 0:00:27]} 23. Nf3 {[%emt 0:00:33]} h6 {[%emt 0:02:43]} 24. Rb1 {[%emt 0:03:05]} Rhg8 {[%emt 0:01:50]} 25. Ne2 {[%emt 0:01:17]} Nh8 {[%emt 0:00:38]} 26. Nd2 {[%emt 0:00:57]} Rg7 {[%emt 0:04:24]} 27. Rh3 {[%emt 0:03:13]} Nf7 {[%emt 0:02:04]} 28. Nb3 {[%emt 0:00:42]} Rh8 {[%emt 0:02:55]} 29. Rc3 {[%emt 0:02:35]} gxf4 {[%emt 0:02:12]} 30. Nxf4 {[%emt 0:00:32]} Ng5 {[%emt 0:00:41]} 31. Rg3 {[%emt 0:04:49]} Rgg8 {[%emt 0:01:46]} 32. Nc5 {[%emt 0:02:35]} b6 {[%emt 0:01:39]} 33. Ncd3 {[%emt 0:00:48]} Ne4 {[%emt 0:01:09]} 34. Rxg8+ {[%emt 0:00:22]} Rxg8 {[%emt 0:00:02]} 35. Rb4 {[%emt 0:01:42]} Kd8 {[%emt 0:01:39]} 36. g3 {[%emt 0:01:19]} Ke7 {[%emt 0:00:54]} 37. Nf2 {[%emt 0:02:30]} Nc3 {[%emt 0:04:34]} 38. Nh5 {[%emt 0:01:50]} a6 {[%emt 0:02:03]} 39. Nf6 {[%emt 0:01:05]} Ra8 {[%emt 0:00:47]} 40. Nxd7 {[%emt 0:04:38]} Kxd7 {[%emt 0:00:11]} 41. Rb3 {[%emt 0:02:05]} Nxa4 {[%emt 0:02:23]} 42. bxa6 {[%emt 0:04:16]} Rxa6 {[%emt 0:01:58]} 43. Nd3 {[%emt 0:00:38]} c5 {[%emt 0:03:41]} 44. dxc5 {[%emt 0:02:42]} Nxc5 {[%emt 0:00:22]} 45. Nxc5+ {[%emt 0:00:39]} bxc5 {[%emt 0:00:13]} 46. Rb7+ {[%emt 0:01:49]} Kc6 {[%emt 0:01:15]} 47. Rh7 {[%emt 0:00:13]} d4 {[%emt 0:00:40]} 48. Rxh6 {[%emt 0:00:14]} Kd5 {[%emt 0:00:13]} 49. Ke2 {[%emt 0:00:37]} Kxe5 {[%emt 0:01:33]} 50. Rh8 {[%emt 0:00:42]} Ra2 {[%emt 0:02:12]} 51. Kd2 {[%emt 0:00:33]} c4 {[%emt 0:05:36]} 52. Rc8 {[%emt 0:01:55]} Kd5 {[%emt 0:00:23]} 53. Rd8+ {[%emt 0:00:50]} Ke4 {[%emt 0:00:37]} 54. Kc1 {[%emt 0:02:56]} d3 {[%emt 0:02:53]} 55. cxd3+ {[%emt 0:00:21]} cxd3 {[%emt 0:00:13]} 56. h4 {[%emt 0:00:57]} e5 {[%emt 0:00:56]} 57. h5 {[%emt 0:00:39]} Rh2 {[%emt 0:01:07]} 0-1

[Event "SWE-ch 65 2019"]
[Site "Eskilstuna"]
[Date "2019.07.11"]
[Round "6.3"]
[White "Nilsson, Christer"]
[Black "Gillefalk, Bjorn"]
[Result "0-1"]
[ECO "C63"]
[WhiteElo "1956"]
[BlackElo "2071"]
[Annotator "NA"]
[PlyCount "80"]
[EventDate "2019.07.06"]
[EventType "tourn"]
[EventCountry "SWE"]
[SourceTitle "playchess.com"]
[Source "ChessBase"]
[SourceQuality "1"]
[TimeControl "40/5400+30:1800+30"]

1. e4 {[%emt 0:00:00]} e5 {[%emt 0:00:00]} 2. Nf3 {[%emt 0:00:00]} Nc6 {[%emt 0:00:00]} 3. Bb5 {[%emt 0:00:32]} f5 {[%emt 0:00:02]} 4. Nc3 {[%emt 0:01:09]} fxe4 {[%emt 0:00:43]} 5. Nxe4 {[%emt 0:00:18]} Nf6 {[%emt 0:03:03]} 6. Qe2 {[%emt 0:09:23]} d5 {[%emt 0:09:10]} 7. Nxf6+ {[%emt 0:05:46]} gxf6 {[%emt 0:00:19]} 8. Nh4 {[%emt 0:04:49]} Be6 {[%emt 0:09:58]} 9. Bxc6+ {[%emt 0:18:59]} bxc6 {[%emt 0:00:27]} 10. d4 {[%emt 0:01:03]} Qd6 {[%emt 0:18:16]} 11. Be3 {[%emt 0:06:37]} Bg7 {[%emt 0:13:02]} 12. Qh5+ {[%emt 0:03:58]} Kd7 {[%emt 0:02:25]} 13. O-O-O {[%emt 0:02:23]} Rab8 {[%emt 0:03:03]} 14. c3 {[%emt 0:01:07]} c5 {[%emt 0:07:30]} 15. Nf5 {[%emt 0:07:10]} Qb6 {[%emt 0:01:34]} 16. Rd2 {[%emt 0:02:30]} Bf8 {[%emt 0:03:48]} 17. dxe5 {[%emt 0:03:38]} fxe5 {[%emt 0:03:38]} 18. Ng3 {[%emt 0:04:19]} Bd6 {[%emt 0:01:41]} 19. Rhd1 {[%emt 0:05:16]} d4 {[%emt 0:01:17]} 20. cxd4 {[%emt 0:05:58]} cxd4 {[%emt 0:00:51]} 21. Bh6 {[%emt 0:01:25]} Bxa2 {[%emt 0:05:14]} 22. Rc2 {[%emt 0:02:48]} Bb3 {[%emt 0:02:09]} 23. Qg4+ {[%emt 0:00:40]} Be6 {[%emt 0:02:12]} 24. Qg7+ {[%emt 0:00:41]} Be7 {[%emt 0:00:01]} 25. Qxe5 {[%emt 0:01:50]} c5 {[%emt 0:00:08]} 26. Ne4 {[%emt 0:00:47]} Rhc8 {[%emt 0:03:32]} 27. Nf6+ {[%emt 0:00:41]} Bxf6 {[%emt 0:03:16]} 28. Qxf6 {[%emt 0:00:07]} Bb3 {[%emt 0:00:30]} 29. Qg7+ {[%emt 0:01:37]} Kc6 {[%emt 0:00:25]} 30. Rxd4 {[%emt 0:00:29]} Kb5 {[%emt 0:00:43]} 31. Qd7+ {[%emt 0:01:06]} Rc6 {[%emt 0:00:43]} 32. Rdd2 {[%emt 0:04:55]} Bxc2 {[%emt 0:00:32]} 33. Kxc2 {[%emt 0:00:22]} Ka6 {[%emt 0:00:30]} 34. Bg7 {[%emt 0:01:44]} Qb3+ {[%emt 0:03:05]} 35. Kb1 {[%emt 0:00:16]} Qe6 {[%emt 0:00:39]} 36. Qd3+ {[%emt 0:00:41]} c4 {[%emt 0:01:18]} 37. Qa3+ {[%emt 0:01:19]} Kb7 {[%emt 0:00:15]} 38. Bc3 {[%emt 0:00:39]} Ra6 {[%emt 0:01:30]} 39. Qc5 {[%emt 0:00:39]} Qe1+ {[%emt 0:00:09]} 40. Kc2 {[%emt 0:00:30]} Qe8 {[%emt 0:00:53]} 0-1

[Event "SWE-ch 65 2019"]
[Site "Eskilstuna"]
[Date "2019.07.11"]
[Round "6.4"]
[White "Dolata, Henryk"]
[Black "Wademark, Helge"]
[Result "1/2-1/2"]
[ECO "B20"]
[WhiteElo "2061"]
[BlackElo "2002"]
[Annotator "NA"]
[PlyCount "47"]
[EventDate "2019.07.06"]
[EventType "tourn"]
[EventCountry "SWE"]
[SourceTitle "playchess.com"]
[Source "ChessBase"]
[SourceQuality "1"]
[TimeControl "40/5400+30:1800+30"]

1. e4 {[%emt 0:00:37]} e6 {[%emt 0:00:07]} 2. b3 {[%emt 0:00:00]} d5 {[%emt 0:38:22]} 3. Bb2 {[%emt 0:00:00]} c5 {[%emt 0:00:27]} 4. exd5 {[%emt 0:04:41]} exd5 {[%emt 0:00:46]} 5. d4 {[%emt 0:00:34]} Nf6 {[%emt 0:01:50]} 6. Nf3 {[%emt 0:11:42]} Bg4 {[%emt 0:04:46]} 7. Nbd2 {[%emt 0:04:03]} Nc6 {[%emt 0:00:49]} 8. Be2 {[%emt 0:00:51]} Be7 {[%emt 0:00:48]} 9. O-O {[%emt 0:01:11]} O-O {[%emt 0:00:02]} 10. h3 {[%emt 0:07:39]} Bf5 {[%emt 0:01:28]} 11. dxc5 {[%emt 0:06:29]} Bxc5 {[%emt 0:00:43]} 12. a3 {[%emt 0:00:08]} a6 {[%emt 0:04:40]} 13. b4 {[%emt 0:02:53]} Ba7 {[%emt 0:00:54]} 14. Nb3 {[%emt 0:01:15]} Rc8 {[%emt 0:02:14]} 15. Rc1 {[%emt 0:00:57]} Ne4 {[%emt 0:00:48]} 16. Nbd4 {[%emt 0:11:18]} Nxd4 {[%emt 0:04:57]} 17. Nxd4 {[%emt 0:00:38]} Bg6 {[%emt 0:00:06]} 18. Bf3 {[%emt 0:14:34]} Nc3 {[%emt 0:04:40]} 19. Qd2 {[%emt 0:00:07]} Ne4 {[%emt 0:02:55]} 20. Qd1 {[%emt 0:01:12]} Nc3 {[%emt 0:00:05]} 21. Qd2 {[%emt 0:00:45]} Ne4 {[%emt 0:00:27]} 22. Qf4 Bb8 {[%emt 0:00:02]} 23. Qe3 {[%emt 0:00:01]} Re8 {[%emt 0:00:01]} 24. Rfe1 1/2-1/2

[Event "SWE-ch 65 2019"]
[Site "Eskilstuna"]
[Date "2019.07.12"]
[Round "7.1"]
[White "Bellon Lopez, Juan Manuel"]
[Black "Gillefalk, Bjorn"]
[Result "1-0"]
[ECO "D12"]
[WhiteElo "2343"]
[BlackElo "2071"]
[Annotator "NA"]
[PlyCount "79"]
[EventDate "2019.07.06"]
[EventType "tourn"]
[EventCountry "SWE"]
[SourceTitle "playchess.com"]
[Source "ChessBase"]
[SourceQuality "1"]
[TimeControl "40/5400+30:1800+30"]

1. d4 {[%emt 0:00:05]} Nf6 {[%emt 0:00:00]} 2. Nf3 {[%emt 0:00:02]} d5 {[%emt 0:00:24]} 3. e3 {[%emt 0:00:17]} Bf5 {[%emt 0:00:41]} 4. c4 {[%emt 0:00:35]} c6 {[%emt 0:00:11]} 5. Nc3 {[%emt 0:00:09]} e6 {[%emt 0:00:09]} 6. Nh4 {[%emt 0:00:50]} Be4 {[%emt 0:00:19]} 7. Qb3 {[%emt 0:04:49]} Qb6 {[%emt 0:17:10]} 8. c5 {[%emt 0:05:59]} Qc7 {[%emt 0:02:18]} 9. Bd2 {[%emt 0:03:39]} Nbd7 {[%emt 0:03:28]} 10. f3 {[%emt 0:03:09]} Bg6 {[%emt 0:00:41]} 11. Nxg6 {[%emt 0:03:29]} hxg6 {[%emt 0:00:08]} 12. f4 {[%emt 0:00:04]} g5 {[%emt 0:10:39]} 13. g3 {[%emt 0:07:03]} Be7 {[%emt 0:07:44]} 14. Be2 {[%emt 0:04:58]} gxf4 {[%emt 0:18:33]} 15. gxf4 {[%emt 0:01:13]} O-O-O {[%emt 0:05:10]} 16. O-O-O {[%emt 0:00:58]} g6 {[%emt 0:01:05]} 17. Be1 {[%emt 0:02:16]} Nh5 {[%emt 0:02:06]} 18. Qa3 {[%emt 0:07:16]} Kb8 {[%emt 0:02:50]} 19. b4 {[%emt 0:02:36]} a6 {[%emt 0:05:55]} 20. Qb3 {[%emt 0:16:30]} Ng7 {[%emt 0:05:16]} 21. a4 {[%emt 0:00:48]} Nf5 {[%emt 0:01:00]} 22. Rd3 {[%emt 0:04:55]} Rh3 {[%emt 0:01:11]} 23. Bg4 {[%emt 0:05:42]} Rxe3 {[%emt 0:01:25]} 24. Bxf5 {[%emt 0:02:19]} Rxe1+ {[%emt 0:00:57]} 25. Rxe1 {[%emt 0:00:41]} Qxf4+ {[%emt 0:00:56]} 26. Kb1 {[%emt 0:03:05]} Qxf5 {[%emt 0:00:55]} 27. Qd1 {[%emt 0:00:44]} g5 {[%emt 0:04:41]} 28. Qf3 {[%emt 0:02:27]} Bf6 {[%emt 0:02:35]} 29. Qxf5 {[%emt 0:02:11]} exf5 {[%emt 0:00:05]} 30. h4 {[%emt 0:01:38]} gxh4 {[%emt 0:01:18]} 31. Rf1 {[%emt 0:02:00]} Rg8 {[%emt 0:00:39]} 32. Rxf5 {[%emt 0:00:48]} Rg2 {[%emt 0:01:21]} 33. Rh5 {[%emt 0:03:12]} Nf8 {[%emt 0:02:06]} 34. b5 {[%emt 0:02:08]} axb5 {[%emt 0:00:05]} 35. axb5 {[%emt 0:00:07]} Ne6 {[%emt 0:01:26]} 36. b6 {[%emt 0:02:21]} Nf4 {[%emt 0:01:06]} 37. Re3 {[%emt 0:01:22]} Kc8 {[%emt 0:00:02]} 38. Rh7 {[%emt 0:01:21]} Rg7 {[%emt 0:01:51]} 39. Rh8+ {[%emt 0:03:05]} Kd7 {[%emt 0:00:01]} 40. Rb8 {[%emt 0:00:01]} 1-0

[Event "SWE-ch 65 2019"]
[Site "Eskilstuna"]
[Date "2019.07.12"]
[Round "7.2"]
[White "Westin, Ake"]
[Black "Dolata, Henryk"]
[Result "1/2-1/2"]
[ECO "A03"]
[WhiteElo "1975"]
[BlackElo "2061"]
[Annotator "NA"]
[PlyCount "103"]
[EventDate "2019.07.06"]
[EventType "tourn"]
[EventCountry "SWE"]
[SourceTitle "playchess.com"]
[Source "ChessBase"]
[SourceQuality "1"]
[TimeControl "40/5400+30:1800+30"]

1. f4 {[%emt 0:00:00]} d5 {[%emt 0:00:00]} 2. Nf3 {[%emt 0:00:00]} Nf6 {[%emt 0:00:00]} 3. e3 {[%emt 0:00:03]} g6 {[%emt 0:00:09]} 4. Be2 {[%emt 0:02:06]} Bg7 {[%emt 0:00:11]} 5. O-O {[%emt 0:00:14]} O-O {[%emt 0:00:10]} 6. d3 {[%emt 0:00:36]} c5 {[%emt 0:00:28]} 7. Ne5 {[%emt 0:00:39]} Nfd7 {[%emt 0:09:34]} 8. Nxd7 {[%emt 0:02:59]} Qxd7 {[%emt 0:02:58]} 9. e4 {[%emt 0:02:01]} Nc6 {[%emt 0:11:41]} 10. c3 {[%emt 0:05:08]} dxe4 {[%emt 0:23:08]} 11. dxe4 {[%emt 0:01:19]} Qxd1 {[%emt 0:00:00]} 12. Rxd1 {[%emt 0:00:40]} e5 {[%emt 0:00:44]} 13. Na3 {[%emt 0:04:09]} Be6 {[%emt 0:02:46]} 14. Be3 {[%emt 0:05:33]} b6 {[%emt 0:01:20]} 15. Nb5 {[%emt 0:11:12]} Rad8 {[%emt 0:23:04]} 16. Rxd8 {[%emt 0:07:27]} Rxd8 {[%emt 0:00:06]} 17. Nc7 {[%emt 0:00:30]} Bc8 {[%emt 0:06:43]} 18. Rd1 {[%emt 0:06:58]} Rxd1+ {[%emt 0:01:06]} 19. Bxd1 {[%emt 0:00:09]} exf4 {[%emt 0:02:55]} 20. Bxf4 {[%emt 0:00:14]} Ne5 {[%emt 0:00:13]} 21. Bxe5 {[%emt 0:03:25]} Bxe5 {[%emt 0:00:03]} 22. Nd5 {[%emt 0:00:23]} Bb7 {[%emt 0:04:14]} 23. Bf3 {[%emt 0:00:53]} Kf8 {[%emt 0:00:42]} 24. Kf2 {[%emt 0:02:33]} Ke8 {[%emt 0:00:16]} 25. Ne3 {[%emt 0:01:28]} Ke7 {[%emt 0:02:43]} 26. g3 {[%emt 0:01:15]} h5 {[%emt 0:00:46]} 27. Nc4 {[%emt 0:02:20]} Bc7 {[%emt 0:02:28]} 28. a4 {[%emt 0:05:45]} Ke6 {[%emt 0:00:24]} 29. Bg2 {[%emt 0:02:43]} Bc6 {[%emt 0:02:04]} 30. b3 {[%emt 0:01:10]} Bb7 {[%emt 0:00:01]} 31. Bh3+ {[%emt 0:03:12]} Ke7 {[%emt 0:00:09]} 32. Bg2 {[%emt 0:01:12]} Ba6 {[%emt 0:00:54]} 33. Bf1 {[%emt 0:00:49]} Bxc4 {[%emt 0:03:07]} 34. Bxc4 {[%emt 0:00:56]} Be5 {[%emt 0:00:01]} 35. h3 {[%emt 0:03:48]} Bxc3 {[%emt 0:00:12]} 36. Ke3 {[%emt 0:04:32]} Be5 {[%emt 0:01:31]} 37. Kf3 {[%emt 0:02:10]} Bc7 {[%emt 0:00:33]} 38. Bd5 {[%emt 0:00:54]} Kf6 {[%emt 0:00:27]} 39. Bc4 {[%emt 0:00:57]} Be5 {[%emt 0:00:12]} 40. Bd5 {[%emt 0:01:00]} Bc3 {[%emt 0:00:30]} 41. Bc4 {[%emt 0:30:39]} Be5 {[%emt 0:03:45]} 42. Bd5 {[%emt 0:00:00]} Kg7 {[%emt 0:00:35]} 43. Bc4 {[%emt 0:00:00]} f6 {[%emt 0:00:40]} 44. Be6 {[%emt 0:00:00]} Bc3 {[%emt 0:02:09]} 45. Bd5 {[%emt 0:00:00]} g5 {[%emt 0:04:58]} 46. Bc4 {[%emt 0:00:00]} Kg6 {[%emt 0:05:26]} 47. Be6 {[%emt 0:00:00]} Be1 {[%emt 0:02:02]} 48. Bd7 {[%emt 0:00:00]} Kf7 {[%emt 0:01:38]} 49. Bf5 {[%emt 0:00:00]} h4 {[%emt 0:07:48]} 50. gxh4 {[%emt 0:00:00]} Bxh4 {[%emt 0:00:02]} 51. Ke3 {[%emt 0:00:00]} Ke7 {[%emt 0:00:34]} 52. Kd3 {[%emt 0:00:00]} 1/2-1/2

[Event "SWE-ch 65 2019"]
[Site "Eskilstuna"]
[Date "2019.07.12"]
[Round "7.3"]
[White "Salholm, Soren"]
[Black "Blomstrom, Lars"]
[Result "0-1"]
[ECO "C77"]
[WhiteElo "1875"]
[BlackElo "2153"]
[Annotator "NA"]
[PlyCount "90"]
[EventDate "2019.07.06"]
[EventType "tourn"]
[EventCountry "SWE"]
[SourceTitle "playchess.com"]
[Source "ChessBase"]
[SourceQuality "1"]
[TimeControl "40/5400+30:1800+30"]

1. e4 {[%emt 0:00:00]} e5 {[%emt 0:00:00]} 2. Nf3 {[%emt 0:00:03]} Nc6 {[%emt 0:00:00]} 3. Bb5 {[%emt 0:00:46]} a6 {[%emt 0:00:00]} 4. Ba4 Nf6 5. d3 {[%emt 0:01:32]} b5 {[%emt 0:03:28]} 6. Bb3 Bc5 7. c3 Bb6 8. Bg5 h6 {[%emt 0:01:38]} 9. Bh4 {[%emt 0:06:37]} d6 {[%emt 0:11:06]} 10. Nbd2 {[%emt 0:12:24]} Bb7 {[%emt 0:03:25]} 11. h3 {[%emt 0:14:22]} Na5 {[%emt 0:34:47]} 12. Bc2 {[%emt 0:03:21]} c5 {[%emt 0:09:34]} 13. O-O {[%emt 0:01:43]} Qe7 {[%emt 0:01:59]} 14. Re1 {[%emt 0:02:37]} g5 {[%emt 0:06:31]} 15. Bg3 {[%emt 0:02:33]} Nh5 {[%emt 0:04:06]} 16. b4 {[%emt 0:01:39]} cxb4 {[%emt 0:00:15]} 17. cxb4 {[%emt 0:00:33]} Nc6 {[%emt 0:00:37]} 18. Nxe5 {[%emt 0:04:52]} Nxg3 {[%emt 0:00:19]} 19. Nxc6 {[%emt 0:00:07]} Bxc6 {[%emt 0:00:19]} 20. Qf3 {[%emt 0:00:21]} Qe5 {[%emt 0:02:06]} 21. Nb3 {[%emt 0:03:46]} Qf4 {[%emt 0:00:33]} 22. Bd1 {[%emt 0:07:12]} Nh5 {[%emt 0:01:31]} 23. d4 {[%emt 0:01:18]} Qxf3 {[%emt 0:00:35]} 24. Bxf3 {[%emt 0:00:53]} Nf4 {[%emt 0:01:36]} 25. Rad1 {[%emt 0:04:35]} O-O {[%emt 0:01:02]} 26. Bg4 {[%emt 0:01:47]} Rad8 {[%emt 0:03:38]} 27. g3 {[%emt 0:00:47]} Ng6 {[%emt 0:00:19]} 28. Kg2 {[%emt 0:02:06]} Kg7 {[%emt 0:00:35]} 29. Rc1 {[%emt 0:04:52]} Bb7 {[%emt 0:00:26]} 30. Kh2 {[%emt 0:01:48]} Ne7 {[%emt 0:04:39]} 31. e5 {[%emt 0:01:07]} dxe5 {[%emt 0:00:40]} 32. Rxe5 {[%emt 0:00:49]} Ng6 {[%emt 0:00:21]} 33. Re2 {[%emt 0:02:48]} Rfe8 {[%emt 0:04:18]} 34. Rd2 {[%emt 0:02:19]} Bd5 {[%emt 0:00:12]} 35. Nc5 {[%emt 0:00:44]} Bxc5 {[%emt 0:00:22]} 36. bxc5 {[%emt 0:02:03]} Ne7 {[%emt 0:01:29]} 37. f4 {[%emt 0:01:35]} Nc6 {[%emt 0:00:25]} 38. h4 {[%emt 0:02:09]} gxh4 {[%emt 0:02:00]} 39. gxh4 {[%emt 0:01:27]} Re3 {[%emt 0:00:16]} 40. Bh3 {[%emt 0:06:45]} Kf6 {[%emt 0:01:01]} 41. Bg2 {[%emt 0:06:32]} Bxg2 {[%emt 0:02:17]} 42. Kxg2 {[%emt 0:00:07]} Rxd4 {[%emt 0:04:41]} 43. Rxd4 {[%emt 0:04:19]} Nxd4 {[%emt 0:00:04]} 44. c6 {[%emt 0:05:55]} Re8 {[%emt 0:00:00]} 45. c7 {[%emt 0:01:40]} Rc8 {[%emt 0:00:00]} 0-1